[Event "Titled Tuesday Blitz May 18 2021"]
[White "Grandelius, Nils"]
[Black "Morefield, Jason"]
[WhiteFideId "1710400"]
[BlackFideId "30920825"]
[WhiteElo "2651"]
[BlackElo "2171"]
[Result "1/2-1/2"]
[Round "04"]
[TimeControl "180+1"]
[Date "2021.05.18"]
[WhiteClock "0:00:26"]
[BlackClock "0:00:52"]

1. Nf3 {[%clk 0:03:00]}  Nf6 {[%clk 0:02:59]} 2. g3 {[%clk 0:03:00]}  d5 {[%clk 0:02:59]} 3. Bg2 {[%clk 0:03:00]}  c6 {[%clk 0:02:59]} 4. O-O {[%clk 0:03:01]}  Bf5 {[%clk 0:02:58]} 5. c4 {[%clk 0:03:00]}  e6 {[%clk 0:02:58]} 6. cxd5 {[%clk 0:03:01]}  exd5 {[%clk 0:02:57]} 7. d3 {[%clk 0:02:59]}  Be7 {[%clk 0:02:52]} 8. Qb3 {[%clk 0:02:55]}  Qb6 {[%clk 0:02:47]} 9. Be3 {[%clk 0:02:53]}  Qxb3 {[%clk 0:02:45]} 10. axb3 {[%clk 0:02:54]}  a6 {[%clk 0:02:45]} 11. Bd2 {[%clk 0:02:54]}  O-O {[%clk 0:02:43]} 12. b4 {[%clk 0:02:54]}  Nbd7 {[%clk 0:02:42]} 13. Bc3 {[%clk 0:02:54]}  Rfe8 {[%clk 0:02:42]} 14. Nbd2 {[%clk 0:02:53]}  Bf8 {[%clk 0:02:42]} 15. Rfe1 {[%clk 0:02:54]}  h6 {[%clk 0:02:40]} 16. Nb3 {[%clk 0:02:51]}  Rac8 {[%clk 0:02:14]} 17. Na5 {[%clk 0:02:37]}  Rc7 {[%clk 0:02:13]} 18. Bd2 {[%clk 0:02:33]}  Bd6 {[%clk 0:02:07]} 19. Nd4 {[%clk 0:02:32]}  Bg6 {[%clk 0:02:05]} 20. Rec1 {[%clk 0:02:21]}  Nf8 {[%clk 0:01:52]} 21. Nab3 {[%clk 0:02:00]}  Ne6 {[%clk 0:01:47]} 22. Bc3 {[%clk 0:01:28]}  Nxd4 {[%clk 0:01:40]} 23. Nxd4 {[%clk 0:01:29]}  Nd7 {[%clk 0:01:35]} 24. Kf1 {[%clk 0:01:24]}  Nf8 {[%clk 0:01:32]} 25. Bh3 {[%clk 0:01:24]}  Ne6 {[%clk 0:01:30]} 26. Nf5 {[%clk 0:01:22]}  Bf8 {[%clk 0:01:29]} 27. Nh4 {[%clk 0:01:17]}  Bh7 {[%clk 0:01:22]} 28. Nf3 {[%clk 0:01:09]}  Ng5 {[%clk 0:01:10]} 29. Bg2 {[%clk 0:01:08]}  Nxf3 {[%clk 0:01:09]} 30. Bxf3 {[%clk 0:01:09]}  Bf5 {[%clk 0:01:09]} 31. h4 {[%clk 0:00:59]}  g6 {[%clk 0:01:07]} 32. Bd2 {[%clk 0:00:58]}  Bg7 {[%clk 0:01:03]} 33. Bc3 {[%clk 0:00:50]}  Rce7 {[%clk 0:01:01]} 34. Bxg7 {[%clk 0:00:45]}  Kxg7 {[%clk 0:01:02]} 35. Ra3 {[%clk 0:00:42]}  h5 {[%clk 0:01:01]} 36. e3 {[%clk 0:00:37]}  Bd7 {[%clk 0:00:54]} 37. d4 {[%clk 0:00:32]}  Bf5 {[%clk 0:00:52]} 38. Rac3 {[%clk 0:00:31]}  Kf6 {[%clk 0:00:51]} 39. Kg2 {[%clk 0:00:30]}  Kg7 {[%clk 0:00:51]} 40. Re1 {[%clk 0:00:30]}  Kf6 {[%clk 0:00:52]} 41. Rg1 {[%clk 0:00:30]}  Kg7 {[%clk 0:00:51]} 42. Ra1 {[%clk 0:00:29]}  Kf6 {[%clk 0:00:51]} 43. Rac1 {[%clk 0:00:25]}  Kg7 {[%clk 0:00:52]} 44. Ra1 {[%clk 0:00:25]}  Kf6 {[%clk 0:00:52]} 45. Rac1 {[%clk 0:00:26]} 1/2-1/2


[Site "https://www.chess.com"]

[Event "Titled Tuesday Blitz May 18 2021"]
[White "Jobava, Baadur"]
[Black "Gabrielian, Artur"]
[WhiteFideId "13601520"]
[BlackFideId "4131002"]
[WhiteElo "2748"]
[BlackElo "2539"]
[Result "1-0"]
[Round "04"]
[TimeControl "180+1"]
[Date "2021.05.18"]
[WhiteClock "0:00:23"]
[BlackClock "0:00:06"]

1. d4 {[%clk 0:02:54]}  Nf6 {[%clk 0:02:58]} 2. c4 {[%clk 0:02:54]}  c5 {[%clk 0:02:57]} 3. d5 {[%clk 0:02:53]}  e6 {[%clk 0:02:57]} 4. Nc3 {[%clk 0:02:53]}  exd5 {[%clk 0:02:57]} 5. cxd5 {[%clk 0:02:54]}  d6 {[%clk 0:02:57]} 6. e4 {[%clk 0:02:54]}  g6 {[%clk 0:02:58]} 7. Nf3 {[%clk 0:02:55]}  Bg7 {[%clk 0:02:57]} 8. Be2 {[%clk 0:02:55]}  O-O {[%clk 0:02:57]} 9. O-O {[%clk 0:02:55]}  Re8 {[%clk 0:02:57]} 10. Nd2 {[%clk 0:02:55]}  Nbd7 {[%clk 0:02:57]} 11. Re1 {[%clk 0:02:52]}  Ne5 {[%clk 0:02:50]} 12. a4 {[%clk 0:02:46]}  Nfg4 {[%clk 0:02:42]} 13. Nf1 {[%clk 0:02:23]}  f5 {[%clk 0:02:39]} 14. Ra3 {[%clk 0:02:20]}  Qh4 {[%clk 0:02:06]} 15. g3 {[%clk 0:02:19]}  Qh3 {[%clk 0:01:59]} 16. Nb5 {[%clk 0:02:06]}  fxe4 {[%clk 0:01:52]} 17. Nxd6 {[%clk 0:02:05]}  Nxf2 {[%clk 0:01:35]} 18. Kxf2 {[%clk 0:02:06]}  Ng4+ {[%clk 0:01:12]} 19. Kg1 {[%clk 0:01:57]}  Bd4+ {[%clk 0:01:04]} 20. Be3 {[%clk 0:01:57]}  Rf8 {[%clk 0:01:04]} 21. Bxg4 {[%clk 0:01:54]}  Bxg4 {[%clk 0:01:03]} 22. Qd2 {[%clk 0:01:53]}  Bf3 {[%clk 0:00:57]} 23. Nb5 {[%clk 0:01:39]}  Be5 {[%clk 0:00:50]} 24. Bxc5 {[%clk 0:01:36]}  Rf5 {[%clk 0:00:49]} 25. d6 {[%clk 0:01:34]}  Rd8 {[%clk 0:00:18]} 26. Rae3 {[%clk 0:01:12]}  a6 {[%clk 0:00:17]} 27. Nc3 {[%clk 0:00:57]}  Bxd6 {[%clk 0:00:17]} 28. b4 {[%clk 0:00:36]}  Bc7 {[%clk 0:00:16]} 29. Qa2+ {[%clk 0:00:35]}  Kg7 {[%clk 0:00:15]} 30. Nxe4 {[%clk 0:00:35]}  Kh6 {[%clk 0:00:11]} 31. Rxf3 {[%clk 0:00:33]}  Rxf3 {[%clk 0:00:10]} 32. Be3+ {[%clk 0:00:33]}  Rxe3 {[%clk 0:00:10]} 33. Nxe3 {[%clk 0:00:32]}  Bb6 {[%clk 0:00:10]} 34. Nf2 {[%clk 0:00:30]}  Qd7 {[%clk 0:00:08]} 35. a5 {[%clk 0:00:28]}  Ba7 {[%clk 0:00:07]} 36. Qc4 {[%clk 0:00:25]}  Qd2 {[%clk 0:00:07]} 37. Qf4+ {[%clk 0:00:24]}  Kg7 {[%clk 0:00:06]} 38. Kf1 {[%clk 0:00:23]}  Rf8 {[%clk 0:00:06]} 39. Nf5+ {[%clk 0:00:23]} 1-0


[Site "https://www.chess.com"]

[Event "Titled Tuesday Blitz May 18 2021"]
[White "Khanin, Semen"]
[Black "Kretov, Evgenij"]
[WhiteFideId "4111990"]
[BlackFideId "4167821"]
[WhiteElo "2521"]
[BlackElo "2381"]
[Result "1-0"]
[Round "04"]
[TimeControl "180+1"]
[Date "2021.05.18"]
[WhiteClock "0:00:14"]
[BlackClock "0:00:11"]

1. e4 {[%clk 0:03:00]}  c5 {[%clk 0:03:00]} 2. Nf3 {[%clk 0:03:00]}  Nc6 {[%clk 0:03:00]} 3. Bb5 {[%clk 0:02:59]}  g6 {[%clk 0:03:00]} 4. O-O {[%clk 0:02:59]}  Bg7 {[%clk 0:03:00]} 5. c3 {[%clk 0:02:59]}  a6 {[%clk 0:02:53]} 6. Bxc6 {[%clk 0:02:53]}  bxc6 {[%clk 0:02:53]} 7. d4 {[%clk 0:02:52]}  cxd4 {[%clk 0:02:53]} 8. cxd4 {[%clk 0:02:52]}  Nf6 {[%clk 0:02:54]} 9. Nc3 {[%clk 0:02:51]}  O-O {[%clk 0:02:53]} 10. e5 {[%clk 0:02:46]}  Nd5 {[%clk 0:02:44]} 11. Nxd5 {[%clk 0:02:45]}  cxd5 {[%clk 0:02:45]} 12. Bf4 {[%clk 0:02:38]}  a5 {[%clk 0:02:38]} 13. Qd2 {[%clk 0:02:35]}  Ba6 {[%clk 0:02:34]} 14. Rfe1 {[%clk 0:02:35]}  Qb6 {[%clk 0:02:34]} 15. Bh6 {[%clk 0:02:26]}  Rab8 {[%clk 0:02:30]} 16. Qg5 {[%clk 0:02:19]}  Rfe8 {[%clk 0:01:58]} 17. b3 {[%clk 0:01:59]}  Bd3 {[%clk 0:01:45]} 18. Qh4 {[%clk 0:01:58]}  Bh8 {[%clk 0:01:31]} 19. Rad1 {[%clk 0:01:37]}  Bf5 {[%clk 0:01:09]} 20. Re3 {[%clk 0:01:11]}  f6 {[%clk 0:01:06]} 21. Bf4 {[%clk 0:01:02]}  Rbc8 {[%clk 0:01:03]} 22. Rde1 {[%clk 0:00:47]}  Be4 {[%clk 0:01:02]} 23. Nd2 {[%clk 0:00:24]}  Qxd4 {[%clk 0:01:01]} 24. Nxe4 {[%clk 0:00:24]}  dxe4 {[%clk 0:01:02]} 25. Rxe4 {[%clk 0:00:24]}  Qd5 {[%clk 0:00:58]} 26. Qg3 {[%clk 0:00:22]}  f5 {[%clk 0:00:47]} 27. R4e2 {[%clk 0:00:21]}  Rc6 {[%clk 0:00:44]} 28. h4 {[%clk 0:00:21]}  Rec8 {[%clk 0:00:38]} 29. Rd2 {[%clk 0:00:21]}  Qe6 {[%clk 0:00:37]} 30. Red1 {[%clk 0:00:21]}  Rc1 {[%clk 0:00:33]} 31. Kh2 {[%clk 0:00:21]}  Rxd1 {[%clk 0:00:32]} 32. Rxd1 {[%clk 0:00:22]}  Rc5 {[%clk 0:00:30]} 33. Qe3 {[%clk 0:00:22]}  Rd5 {[%clk 0:00:30]} 34. Rc1 {[%clk 0:00:21]}  Bxe5 {[%clk 0:00:29]} 35. Rc8+ {[%clk 0:00:21]}  Kf7 {[%clk 0:00:29]} 36. g3 {[%clk 0:00:19]}  Bxf4 {[%clk 0:00:28]} 37. Qxf4 {[%clk 0:00:20]}  Qf6 {[%clk 0:00:21]} 38. Qb8 {[%clk 0:00:16]}  Kg7 {[%clk 0:00:16]} 39. Rg8+ {[%clk 0:00:15]}  Kh6 {[%clk 0:00:15]} 40. Qf4+ {[%clk 0:00:16]}  Kh5 {[%clk 0:00:15]} 41. Qf3+ {[%clk 0:00:15]}  Kh6 {[%clk 0:00:15]} 42. Qxd5 {[%clk 0:00:15]}  Qb2 {[%clk 0:00:15]} 43. Qf3 {[%clk 0:00:14]}  e5 {[%clk 0:00:12]} 44. Qe3+ {[%clk 0:00:14]}  f4 {[%clk 0:00:12]} 45. gxf4 {[%clk 0:00:14]}  Kh5 {[%clk 0:00:11]} 46. fxe5 {[%clk 0:00:14]} 1-0


[Site "https://www.chess.com"]

[Event "Titled Tuesday Blitz May 18 2021"]
[White "Kovalev, Vladislav"]
[Black "Nitin, S."]
[WhiteFideId "13504398"]
[BlackFideId "5018277"]
[WhiteElo "2573"]
[BlackElo "2431"]
[Result "1-0"]
[Round "04"]
[TimeControl "180+1"]
[Date "2021.05.18"]
[WhiteClock "0:00:03"]
[BlackClock "0:00:02"]

1. e4 {[%clk 0:03:00]}  c5 {[%clk 0:02:58]} 2. Be2 {[%clk 0:03:00]}  d6 {[%clk 0:02:55]} 3. d3 {[%clk 0:03:01]}  g6 {[%clk 0:02:55]} 4. f4 {[%clk 0:03:02]}  Bg7 {[%clk 0:02:55]} 5. Nf3 {[%clk 0:03:03]}  e6 {[%clk 0:02:56]} 6. O-O {[%clk 0:03:04]}  Ne7 {[%clk 0:02:56]} 7. c3 {[%clk 0:03:05]}  O-O {[%clk 0:02:56]} 8. d4 {[%clk 0:03:05]}  cxd4 {[%clk 0:02:51]} 9. cxd4 {[%clk 0:03:06]}  Nbc6 {[%clk 0:02:52]} 10. Nc3 {[%clk 0:03:01]}  Qb6 {[%clk 0:02:44]} 11. Kh1 {[%clk 0:02:29]}  a6 {[%clk 0:02:30]} 12. Na4 {[%clk 0:02:06]}  Qa7 {[%clk 0:02:29]} 13. Be3 {[%clk 0:02:06]}  b5 {[%clk 0:02:24]} 14. Nc3 {[%clk 0:02:05]}  e5 {[%clk 0:02:17]} 15. Bg1 {[%clk 0:01:41]}  Nxd4 {[%clk 0:02:03]} 16. Nxd4 {[%clk 0:01:37]}  exd4 {[%clk 0:02:04]} 17. Rc1 {[%clk 0:01:33]}  Bb7 {[%clk 0:01:50]} 18. Bf3 {[%clk 0:01:30]}  Rac8 {[%clk 0:01:46]} 19. Ne2 {[%clk 0:01:21]}  Rxc1 {[%clk 0:01:42]} 20. Qxc1 {[%clk 0:01:22]}  Qa8 {[%clk 0:01:39]} 21. Qc7 {[%clk 0:00:47]}  Re8 {[%clk 0:01:32]} 22. Ng3 {[%clk 0:00:40]}  h5 {[%clk 0:01:15]} 23. Qxd6 {[%clk 0:00:31]}  h4 {[%clk 0:01:15]} 24. Ne2 {[%clk 0:00:32]}  Bxe4 {[%clk 0:01:14]} 25. Nxd4 {[%clk 0:00:30]}  Bxf3 {[%clk 0:01:09]} 26. Nxf3 {[%clk 0:00:31]}  Nf5 {[%clk 0:01:08]} 27. Qd7 {[%clk 0:00:28]}  h3 {[%clk 0:01:07]} 28. gxh3 {[%clk 0:00:24]}  Nh4 {[%clk 0:00:59]} 29. Qg4 {[%clk 0:00:24]}  Nxf3 {[%clk 0:00:56]} 30. Qxf3 {[%clk 0:00:25]}  Qxf3+ {[%clk 0:00:56]} 31. Rxf3 {[%clk 0:00:26]}  Re2 {[%clk 0:00:53]} 32. Ra3 {[%clk 0:00:24]}  Rxb2 {[%clk 0:00:40]} 33. Rxa6 {[%clk 0:00:25]}  Rb4 {[%clk 0:00:40]} 34. Ra5 {[%clk 0:00:20]}  Rxf4 {[%clk 0:00:31]} 35. Rxb5 {[%clk 0:00:20]}  Ra4 {[%clk 0:00:32]} 36. Rb8+ {[%clk 0:00:21]}  Kh7 {[%clk 0:00:31]} 37. Rb7 {[%clk 0:00:22]}  Kg8 {[%clk 0:00:28]} 38. Rb8+ {[%clk 0:00:22]}  Kh7 {[%clk 0:00:28]} 39. Rb7 {[%clk 0:00:23]}  Rxa2 {[%clk 0:00:28]} 40. Rxf7 {[%clk 0:00:22]}  Kg8 {[%clk 0:00:28]} 41. Rf3 {[%clk 0:00:20]}  Kh7 {[%clk 0:00:27]} 42. Bf2 {[%clk 0:00:19]}  Rc2 {[%clk 0:00:26]} 43. Kg1 {[%clk 0:00:19]}  Kg8 {[%clk 0:00:25]} 44. h4 {[%clk 0:00:20]}  Kh7 {[%clk 0:00:25]} 45. Rf7 {[%clk 0:00:19]}  Kg8 {[%clk 0:00:25]} 46. Rd7 {[%clk 0:00:20]}  Bf6 {[%clk 0:00:23]} 47. Rd6 {[%clk 0:00:18]}  Kf7 {[%clk 0:00:20]} 48. Rd5 {[%clk 0:00:18]}  Ke6 {[%clk 0:00:18]} 49. Rb5 {[%clk 0:00:19]}  Rc4 {[%clk 0:00:16]} 50. h5 {[%clk 0:00:19]}  gxh5 {[%clk 0:00:15]} 51. Rxh5 {[%clk 0:00:20]}  Kf7 {[%clk 0:00:16]} 52. Kg2 {[%clk 0:00:17]}  Kg6 {[%clk 0:00:16]} 53. Rd5 {[%clk 0:00:18]}  Rc2 {[%clk 0:00:16]} 54. Kf3 {[%clk 0:00:18]}  Ra2 {[%clk 0:00:16]} 55. h4 {[%clk 0:00:17]}  Ra3+ {[%clk 0:00:16]} 56. Kg2 {[%clk 0:00:17]}  Ra4 {[%clk 0:00:16]} 57. h5+ {[%clk 0:00:18]}  Kf7 {[%clk 0:00:16]} 58. Kf3 {[%clk 0:00:18]}  Rc4 {[%clk 0:00:15]} 59. Be3 {[%clk 0:00:18]}  Rh4 {[%clk 0:00:14]} 60. Kg3 {[%clk 0:00:16]}  Re4 {[%clk 0:00:14]} 61. Bf4 {[%clk 0:00:16]}  Rd4 {[%clk 0:00:14]} 62. Rb5 {[%clk 0:00:15]}  Rc4 {[%clk 0:00:13]} 63. Kg4 {[%clk 0:00:14]}  Rc2 {[%clk 0:00:13]} 64. Kf5 {[%clk 0:00:14]}  Be7 {[%clk 0:00:13]} 65. Be5 {[%clk 0:00:10]}  Rf2+ {[%clk 0:00:11]} 66. Kg4 {[%clk 0:00:09]}  Rg2+ {[%clk 0:00:11]} 67. Kf3 {[%clk 0:00:07]}  Rc2 {[%clk 0:00:10]} 68. Bf4 {[%clk 0:00:05]}  Rc5 {[%clk 0:00:10]} 69. Rb7 {[%clk 0:00:03]}  Ke8 {[%clk 0:00:02]} 70. h6 {[%clk 0:00:03]}  Bf6 {[%clk 0:00:02]} 71. Kg4 {[%clk 0:00:03]}  Rc2 {[%clk 0:00:02]} 72. Kf5 {[%clk 0:00:04]}  Bd4 {[%clk 0:00:02]} 73. h7 {[%clk 0:00:03]} 1-0


[Site "https://www.chess.com"]

[Event "Titled Tuesday Blitz May 18 2021"]
[White "Moskalenko, Alexander"]
[Black "Chigaev, Maksim"]
[WhiteFideId "4155351"]
[BlackFideId "4108116"]
[WhiteElo "2495"]
[BlackElo "2646"]
[Result "1-0"]
[Round "04"]
[TimeControl "180+1"]
[Date "2021.05.18"]
[WhiteClock "0:00:04"]
[BlackClock "0:00:03"]

1. Nf3 {[%clk 0:03:00]}  Nf6 {[%clk 0:02:53]} 2. c4 {[%clk 0:03:01]}  g6 {[%clk 0:02:53]} 3. Nc3 {[%clk 0:03:01]}  Bg7 {[%clk 0:02:53]} 4. e4 {[%clk 0:03:02]}  e5 {[%clk 0:02:53]} 5. d4 {[%clk 0:03:03]}  exd4 {[%clk 0:02:53]} 6. Nxd4 {[%clk 0:03:04]}  O-O {[%clk 0:02:54]} 7. Be2 {[%clk 0:02:15]}  Re8 {[%clk 0:02:53]} 8. f3 {[%clk 0:02:15]}  c6 {[%clk 0:02:53]} 9. Nc2 {[%clk 0:02:15]}  Na6 {[%clk 0:02:39]} 10. O-O {[%clk 0:02:09]}  Nc7 {[%clk 0:02:39]} 11. Qd6 {[%clk 0:01:59]}  Bf8 {[%clk 0:02:32]} 12. Qd3 {[%clk 0:01:59]}  d5 {[%clk 0:02:31]} 13. cxd5 {[%clk 0:01:55]}  cxd5 {[%clk 0:02:31]} 14. Bg5 {[%clk 0:01:56]}  Ne6 {[%clk 0:02:12]} 15. Bxf6 {[%clk 0:01:38]}  Qxf6 {[%clk 0:02:13]} 16. Nxd5 {[%clk 0:01:30]}  Qxb2 {[%clk 0:02:12]} 17. Rab1 {[%clk 0:01:29]}  Qg7 {[%clk 0:01:53]} 18. Kh1 {[%clk 0:01:28]}  Bd7 {[%clk 0:01:34]} 19. Nc7 {[%clk 0:01:11]}  Nxc7 {[%clk 0:01:16]} 20. Qxd7 {[%clk 0:01:11]}  Ne6 {[%clk 0:01:14]} 21. Qxb7 {[%clk 0:01:05]}  Bd6 {[%clk 0:01:11]} 22. Ne3 {[%clk 0:00:59]}  h5 {[%clk 0:01:05]} 23. Nd5 {[%clk 0:00:50]}  Rab8 {[%clk 0:00:50]} 24. Qc6 {[%clk 0:00:47]}  Rbd8 {[%clk 0:00:47]} 25. Bb5 {[%clk 0:00:38]}  h4 {[%clk 0:00:39]} 26. Qa6 {[%clk 0:00:34]}  Rf8 {[%clk 0:00:38]} 27. f4 {[%clk 0:00:27]}  h3 {[%clk 0:00:32]} 28. g3 {[%clk 0:00:24]}  Nc5 {[%clk 0:00:32]} 29. Qxa7 {[%clk 0:00:23]}  Nxe4 {[%clk 0:00:32]} 30. Qe3 {[%clk 0:00:16]}  Nf6 {[%clk 0:00:23]} 31. Nxf6+ {[%clk 0:00:15]}  Qxf6 {[%clk 0:00:24]} 32. Rbd1 {[%clk 0:00:15]}  Qb2 {[%clk 0:00:20]} 33. Qe2 {[%clk 0:00:15]}  Qa3 {[%clk 0:00:16]} 34. Bc4 {[%clk 0:00:13]}  Kg7 {[%clk 0:00:14]} 35. Rd3 {[%clk 0:00:09]}  Qc5 {[%clk 0:00:11]} 36. Bb3 {[%clk 0:00:07]}  Be7 {[%clk 0:00:11]} 37. Re3 {[%clk 0:00:06]}  Bf6 {[%clk 0:00:11]} 38. g4 {[%clk 0:00:06]}  Qc6+ {[%clk 0:00:10]} 39. Qf3 {[%clk 0:00:06]}  Qb5 {[%clk 0:00:10]} 40. g5 {[%clk 0:00:06]}  Bd4 {[%clk 0:00:10]} 41. Re4 {[%clk 0:00:07]}  Rfe8 {[%clk 0:00:09]} 42. Rxe8 {[%clk 0:00:07]}  Rxe8 {[%clk 0:00:10]} 43. Qxh3 {[%clk 0:00:07]}  Re2 {[%clk 0:00:05]} 44. Qh6+ {[%clk 0:00:07]}  Kg8 {[%clk 0:00:06]} 45. Qxg6+ {[%clk 0:00:08]}  Kh8 {[%clk 0:00:06]} 46. Qh6+ {[%clk 0:00:08]}  Kg8 {[%clk 0:00:06]} 47. Qg6+ {[%clk 0:00:05]}  Kh8 {[%clk 0:00:05]} 48. Qd6 {[%clk 0:00:06]}  Re6 {[%clk 0:00:03]} 49. Qxd4+ {[%clk 0:00:04]} 1-0


[Site "https://www.chess.com"]

[Event "Titled Tuesday Blitz May 18 2021"]
[White "Murzin, Volodar"]
[Black "Sanal, Vahap"]
[WhiteFideId "44155573"]
[BlackFideId "6300545"]
[WhiteElo "2541"]
[BlackElo "2507"]
[Result "0-1"]
[Round "04"]
[TimeControl "180+1"]
[Date "2021.05.18"]
[WhiteClock "0:00:04"]
[BlackClock "0:00:13"]

1. e4 {[%clk 0:03:00]}  e5 {[%clk 0:02:55]} 2. Nf3 {[%clk 0:03:00]}  Nc6 {[%clk 0:02:54]} 3. Bb5 {[%clk 0:03:00]}  Nf6 {[%clk 0:02:51]} 4. O-O {[%clk 0:02:57]}  Nxe4 {[%clk 0:02:51]} 5. Re1 {[%clk 0:02:58]}  Nd6 {[%clk 0:02:51]} 6. Nxe5 {[%clk 0:02:58]}  Be7 {[%clk 0:02:50]} 7. Bf1 {[%clk 0:02:58]}  Nxe5 {[%clk 0:02:49]} 8. Rxe5 {[%clk 0:02:57]}  O-O {[%clk 0:02:50]} 9. d4 {[%clk 0:02:57]}  Ne8 {[%clk 0:02:50]} 10. Nd2 {[%clk 0:02:49]}  Bf6 {[%clk 0:02:46]} 11. Re4 {[%clk 0:02:44]}  d5 {[%clk 0:02:46]} 12. Rf4 {[%clk 0:02:43]}  Bg5 {[%clk 0:02:43]} 13. Nb3 {[%clk 0:02:36]}  Bxf4 {[%clk 0:02:37]} 14. Bxf4 {[%clk 0:02:37]}  Nd6 {[%clk 0:02:34]} 15. Bd3 {[%clk 0:02:31]}  Qh4 {[%clk 0:01:38]} 16. Qf3 {[%clk 0:02:22]}  Re8 {[%clk 0:01:25]} 17. Bg3 {[%clk 0:02:08]}  Qg5 {[%clk 0:01:23]} 18. h4 {[%clk 0:02:01]}  Qg4 {[%clk 0:01:21]} 19. Qxd5 {[%clk 0:02:00]}  Be6 {[%clk 0:01:20]} 20. Qc5 {[%clk 0:01:47]}  Ne4 {[%clk 0:00:56]} 21. Qxc7 {[%clk 0:01:43]}  Bxb3 {[%clk 0:00:47]} 22. axb3 {[%clk 0:01:03]}  Nxg3 {[%clk 0:00:45]} 23. Qxg3 {[%clk 0:01:04]}  Qxd4 {[%clk 0:00:41]} 24. Qf3 {[%clk 0:00:47]}  Qxh4 {[%clk 0:00:27]} 25. Qxb7 {[%clk 0:00:42]}  Qd4 {[%clk 0:00:24]} 26. g3 {[%clk 0:00:29]}  a5 {[%clk 0:00:17]} 27. Kg2 {[%clk 0:00:25]}  Qxb2 {[%clk 0:00:16]} 28. Rh1 {[%clk 0:00:22]}  g6 {[%clk 0:00:14]} 29. Rh4 {[%clk 0:00:21]}  Qe5 {[%clk 0:00:11]} 30. Re4 {[%clk 0:00:18]}  Qd6 {[%clk 0:00:10]} 31. Bc4 {[%clk 0:00:14]}  Kh8 {[%clk 0:00:04]} 32. Bxf7 {[%clk 0:00:05]}  Rf8 {[%clk 0:00:04]} 33. Re2 {[%clk 0:00:01]}  Rab8 {[%clk 0:00:04]} 34. Qd5 {[%clk 0:00:01]}  Qxd5+ {[%clk 0:00:04]} 35. Bxd5 {[%clk 0:00:02]}  Rbd8 {[%clk 0:00:04]} 36. Bc4 {[%clk 0:00:02]}  Rd6 {[%clk 0:00:05]} 37. Bd3 {[%clk 0:00:01]}  Rdf6 {[%clk 0:00:05]} 38. f3 {[%clk 0:00:01]}  Ra8 {[%clk 0:00:06]} 39. f4 {[%clk 0:00:01]}  a4 {[%clk 0:00:06]} 40. bxa4 {[%clk 0:00:02]}  Rxa4 {[%clk 0:00:07]} 41. Kf3 {[%clk 0:00:03]}  Ra7 {[%clk 0:00:07]} 42. Re5 {[%clk 0:00:03]}  Kg7 {[%clk 0:00:08]} 43. g4 {[%clk 0:00:03]}  Rc7 {[%clk 0:00:08]} 44. g5 {[%clk 0:00:03]}  Rd6 {[%clk 0:00:09]} 45. f5 {[%clk 0:00:03]}  gxf5 {[%clk 0:00:09]} 46. Rxf5 {[%clk 0:00:03]}  Rf7 {[%clk 0:00:09]} 47. Rxf7+ {[%clk 0:00:03]}  Kxf7 {[%clk 0:00:10]} 48. Bxh7 {[%clk 0:00:04]}  Rd1 {[%clk 0:00:11]} 49. Bd3 {[%clk 0:00:04]}  Rg1 {[%clk 0:00:11]} 50. Kf4 {[%clk 0:00:04]}  Ke6 {[%clk 0:00:11]} 51. Bc4+ {[%clk 0:00:04]}  Ke7 {[%clk 0:00:12]} 52. Kf5 {[%clk 0:00:04]}  Rg2 {[%clk 0:00:11]} 53. Bd3 {[%clk 0:00:04]}  Kf7 {[%clk 0:00:11]} 54. Bc4+ {[%clk 0:00:04]}  Kg7 {[%clk 0:00:11]} 55. Bd3 {[%clk 0:00:05]}  Rg1 {[%clk 0:00:11]} 56. Kf4 {[%clk 0:00:05]}  Rg2 {[%clk 0:00:10]} 57. Kf5 {[%clk 0:00:05]}  Rf2+ {[%clk 0:00:11]} 58. Kg4 {[%clk 0:00:05]}  Kf7 {[%clk 0:00:11]} 59. Kh5 {[%clk 0:00:05]}  Rg2 {[%clk 0:00:10]} 60. Kh4 {[%clk 0:00:06]}  Rg1 {[%clk 0:00:10]} 61. Kh5 {[%clk 0:00:05]}  Ke6 {[%clk 0:00:11]} 62. Kh6 {[%clk 0:00:05]}  Ke5 {[%clk 0:00:11]} 63. g6 {[%clk 0:00:01]}  Kf6 {[%clk 0:00:12]} 64. Kh5 {[%clk 0:00:02]}  Rg5+ {[%clk 0:00:13]} 65. Kh4 {[%clk 0:00:02]}  Rg1 {[%clk 0:00:13]} 66. Kh3 {[%clk 0:00:03]}  Ke5 {[%clk 0:00:13]} 67. Kh4 {[%clk 0:00:03]}  Kf4 {[%clk 0:00:13]} 68. Kh3 {[%clk 0:00:04]}  Rg5 {[%clk 0:00:14]} 69. Kh4 {[%clk 0:00:04]}  Rg3 {[%clk 0:00:13]} 0-1


[Site "https://www.chess.com"]

[Event "Titled Tuesday Blitz May 18 2021"]
[White "Omariev, Maksim"]
[Black "Goltsev, Dmitry"]
[WhiteFideId "4193423"]
[BlackFideId "24176710"]
[WhiteElo "2493"]
[BlackElo "2366"]
[Result "0-1"]
[Round "04"]
[TimeControl "180+1"]
[Date "2021.05.18"]
[WhiteClock "0:00:09"]
[BlackClock "0:02:04"]

1. g4 {[%clk 0:03:00]}  d5 {[%clk 0:02:50]} 2. Bg2 {[%clk 0:02:48]}  Bxg4 {[%clk 0:02:48]} 3. c4 {[%clk 0:02:47]}  Nf6 {[%clk 0:02:47]} 4. Qb3 {[%clk 0:02:46]}  e6 {[%clk 0:02:43]} 5. cxd5 {[%clk 0:02:32]}  exd5 {[%clk 0:02:44]} 6. Qxb7 {[%clk 0:02:29]}  Nbd7 {[%clk 0:02:40]} 7. Nc3 {[%clk 0:02:17]}  Nc5 {[%clk 0:02:36]} 8. Qb5+ {[%clk 0:02:11]}  c6 {[%clk 0:02:34]} 9. Qxc6+ {[%clk 0:00:45]}  Bd7 {[%clk 0:02:13]} 10. Bxd5 {[%clk 0:00:28]}  Bxc6 {[%clk 0:02:11]} 11. Bxc6+ {[%clk 0:00:29]}  Nfd7 {[%clk 0:02:11]} 12. Bxa8 {[%clk 0:00:27]}  Qxa8 {[%clk 0:02:12]} 13. Nf3 {[%clk 0:00:27]}  Bd6 {[%clk 0:02:12]} 14. d4 {[%clk 0:00:27]}  Ne4 {[%clk 0:02:11]} 15. Nb5 {[%clk 0:00:22]}  Bb4+ {[%clk 0:02:09]} 16. Bd2 {[%clk 0:00:20]}  Bxd2+ {[%clk 0:02:08]} 17. Nxd2 {[%clk 0:00:20]}  O-O {[%clk 0:02:08]} 18. Rg1 {[%clk 0:00:08]}  Nxd2 {[%clk 0:02:05]} 19. Kxd2 {[%clk 0:00:09]}  Qd5 {[%clk 0:02:05]} 20. a4 {[%clk 0:00:08]}  a6 {[%clk 0:02:05]} 21. Nc3 {[%clk 0:00:08]}  Qxd4+ {[%clk 0:02:05]} 22. Kc2 {[%clk 0:00:09]}  Nc5 {[%clk 0:02:04]} 0-1


[Site "https://www.chess.com"]